[Event "*** SCC Grand Prix: Titled Tuesday Blitz"]
[Site "Chess.com"]
[Date "2020.08.25"]
[Round "9"]
[White "Spriteball"]
[Black "MashaFromRussia"]
[Result "0-1"]
[WhiteElo "2228"]
[BlackElo "2396"]
[TimeControl "180+1"]
[EndTime "11:45:24 PDT"]
[Termination "MashaFromRussia won by resignation"]

1. c4 {[%clk 0:03:00.9]} 1... e5 {[%clk 0:02:58.3]} 2. Nc3 {[%clk 0:02:59.8]}
2... d6 {[%clk 0:02:58.6]} 3. g3 {[%clk 0:02:58]} 3... f5 {[%clk 0:02:59]} 4.
Bg2 {[%clk 0:02:57.8]} 4... Nf6 {[%clk 0:02:59.4]} 5. e3 {[%clk 0:02:57.2]} 5...
g6 {[%clk 0:02:59.3]} 6. d4 {[%clk 0:02:57.1]} 6... e4 {[%clk 0:02:59.5]} 7.
Nge2 {[%clk 0:02:55.5]} 7... Bg7 {[%clk 0:02:59.8]} 8. b3 {[%clk 0:02:49.4]}
8... O-O {[%clk 0:02:59.5]} 9. Bb2 {[%clk 0:02:49.1]} 9... c5 {[%clk 0:02:59.6]}
10. dxc5 {[%clk 0:02:45]} 10... dxc5 {[%clk 0:02:59.3]} 11. Qc2 {[%clk
0:02:41.4]} 11... Be6 {[%clk 0:02:55.9]} 12. Rd1 {[%clk 0:02:39.1]} 12... Qe7
{[%clk 0:02:52.4]} 13. O-O {[%clk 0:02:38.3]} 13... Nc6 {[%clk 0:02:51.6]} 14.
Nf4 {[%clk 0:02:38.1]} 14... Rad8 {[%clk 0:02:41.4]} 15. f3 {[%clk 0:02:17.8]}
15... exf3 {[%clk 0:02:40]} 16. Bxf3 {[%clk 0:02:17.9]} 16... Ne5 {[%clk
0:02:40.2]} 17. Ncd5 {[%clk 0:02:06.1]} 17... Nxf3+ {[%clk 0:02:36]} 18. Rxf3
{[%clk 0:02:05.6]} 18... Bxd5 {[%clk 0:02:32.7]} 19. Nxd5 {[%clk 0:01:58.3]}
19... Nxd5 {[%clk 0:02:32.3]} 20. cxd5 {[%clk 0:01:56.2]} 20... Bxb2 {[%clk
0:02:30.9]} 21. Qxb2 {[%clk 0:01:57.1]} 21... Qe4 {[%clk 0:02:31.1]} 22. Rf4
{[%clk 0:01:42.3]} 22... Qxe3+ {[%clk 0:02:30.7]} 23. Qf2 {[%clk 0:01:39.3]}
23... Qxf2+ {[%clk 0:02:27.3]} 24. Rxf2 {[%clk 0:01:39.4]} 24... Rd7 {[%clk
0:02:25.9]} 25. Re2 {[%clk 0:01:28.7]} 25... Rfd8 {[%clk 0:02:23.5]} 26. Re5
{[%clk 0:01:28.3]} 26... Kf7 {[%clk 0:02:21.8]} 27. Kf2 {[%clk 0:01:27.4]} 27...
Rd6 {[%clk 0:02:18.3]} 28. Rde1 {[%clk 0:01:15.3]} 28... R8d7 {[%clk 0:02:05.4]}
29. Rc1 {[%clk 0:00:58.5]} 29... b6 {[%clk 0:02:02.3]} 30. Rce1 {[%clk 0:00:42]}
30... Rxd5 {[%clk 0:02:01.6]} 31. Re8 {[%clk 0:00:41.5]} 31... Rd2+ {[%clk
0:02:00.1]} 32. Kg1 {[%clk 0:00:39.2]} 32... Rxa2 {[%clk 0:01:58]} 33. Rh8
{[%clk 0:00:37.3]} 33... Kg7 {[%clk 0:01:57.6]} 34. Rhe8 {[%clk 0:00:35]} 34...
Rdd2 {[%clk 0:01:55.7]} 35. R8e7+ {[%clk 0:00:34.5]} 35... Kh6 {[%clk
0:01:55.8]} 0-1

[Event "*** SCC Grand Prix: Titled Tuesday Blitz"]
[Site "Chess.com"]
[Date "2020.08.25"]
[Round "9"]
[White "milenapn"]
[Black "kidagent"]
[Result "0-1"]
[WhiteElo "1977"]
[BlackElo "2250"]
[TimeControl "180+1"]
[EndTime "11:45:25 PDT"]
[Termination "kidagent won on time"]

1. e4 {[%clk 0:03:00.9]} 1... c5 {[%clk 0:02:59.5]} 2. Nf3 {[%clk 0:03:00.1]}
2... d6 {[%clk 0:03:00]} 3. d4 {[%clk 0:03:00.4]} 3... cxd4 {[%clk 0:03:00.9]}
4. Nxd4 {[%clk 0:03:01]} 4... Nf6 {[%clk 0:03:01.5]} 5. Nc3 {[%clk 0:03:01.6]}
5... a6 {[%clk 0:03:01.8]} 6. Bg5 {[%clk 0:03:02]} 6... e6 {[%clk 0:03:01.9]} 7.
f4 {[%clk 0:03:02.1]} 7... b5 {[%clk 0:03:01.8]} 8. e5 {[%clk 0:02:20]} 8...
dxe5 {[%clk 0:03:02.7]} 9. fxe5 {[%clk 0:02:15.5]} 9... Qc7 {[%clk 0:03:03.2]}
10. exf6 {[%clk 0:02:04]} 10... Qe5+ {[%clk 0:03:02.6]} 11. Be2 {[%clk
0:01:51.9]} 11... Qxg5 {[%clk 0:03:01.7]} 12. Ne4 {[%clk 0:01:30.4]} 12... Qe5
{[%clk 0:03:00.6]} 13. Qd3 {[%clk 0:00:56.3]} 13... Ra7 {[%clk 0:02:58.1]} 14.
Nf3 {[%clk 0:00:47.9]} 14... Qf4 {[%clk 0:02:53.3]} 15. g3 {[%clk 0:00:45.3]}
15... Qf5 {[%clk 0:02:45.3]} 16. O-O-O {[%clk 0:00:38.4]} 16... Rd7 {[%clk
0:02:43.4]} 17. Qe3 {[%clk 0:00:25.3]} 17... Bb7 {[%clk 0:02:39.2]} 18. fxg7
{[%clk 0:00:20.2]} 18... Bxg7 {[%clk 0:02:37.9]} 19. Nd6+ {[%clk 0:00:20.2]}
19... Rxd6 {[%clk 0:02:35.4]} 20. Rxd6 {[%clk 0:00:21.1]} 20... O-O {[%clk
0:02:30.1]} 21. Rhd1 {[%clk 0:00:20.2]} 21... Nc6 {[%clk 0:02:24.8]} 22. Bd3
{[%clk 0:00:14.8]} 22... Qf6 {[%clk 0:02:22]} 23. Rd2 {[%clk 0:00:02.6]} 23...
Bh6 {[%clk 0:02:04.4]} 24. Qe2 {[%clk 0:00:02.6]} 24... Rd8 {[%clk 0:01:52.7]}
25. Rxd8+ {[%clk 0:00:02.1]} 25... Nxd8 {[%clk 0:01:49.5]} 26. Kd1 {[%clk
0:00:02.2]} 26... Bxf3 {[%clk 0:01:47.4]} 0-1

[Event "*** SCC Grand Prix: Titled Tuesday Blitz"]
[Site "Chess.com"]
[Date "2020.08.25"]
[Round "9"]
[White "monalize"]
[Black "cukin84"]
[Result "1-0"]
[WhiteElo "2287"]
[BlackElo "2057"]
[TimeControl "180+1"]
[EndTime "11:45:27 PDT"]
[Termination "monalize won by resignation"]

1. e4 {[%clk 0:02:58.9]} 1... c6 {[%clk 0:02:59.4]} 2. d4 {[%clk 0:02:57.2]}
2... d5 {[%clk 0:02:59.6]} 3. Nc3 {[%clk 0:02:57.4]} 3... a6 {[%clk 0:02:59]} 4.
Nf3 {[%clk 0:02:50.9]} 4... Bg4 {[%clk 0:02:57.8]} 5. h3 {[%clk 0:02:50.1]} 5...
Bh5 {[%clk 0:02:56.8]} 6. g4 {[%clk 0:02:42.7]} 6... Bg6 {[%clk 0:02:56.2]} 7.
Bd3 {[%clk 0:02:42.6]} 7... e6 {[%clk 0:02:51.7]} 8. a3 {[%clk 0:02:41.7]} 8...
Nf6 {[%clk 0:02:49]} 9. Qe2 {[%clk 0:02:40.6]} 9... dxe4 {[%clk 0:02:48]} 10.
Nxe4 {[%clk 0:02:39.7]} 10... Nxe4 {[%clk 0:02:47.9]} 11. Bxe4 {[%clk
0:02:39.7]} 11... Bxe4 {[%clk 0:02:47.7]} 12. Qxe4 {[%clk 0:02:39.6]} 12... Qd5
{[%clk 0:02:47.8]} 13. Qe2 {[%clk 0:02:35.9]} 13... Nd7 {[%clk 0:02:46.1]} 14.
c4 {[%clk 0:02:34.7]} 14... Qa5+ {[%clk 0:02:39.6]} 15. Bd2 {[%clk 0:02:32.9]}
15... Qb6 {[%clk 0:02:37.4]} 16. Bc3 {[%clk 0:02:32]} 16... Be7 {[%clk
0:02:26.2]} 17. O-O-O {[%clk 0:02:21.3]} 17... Bf6 {[%clk 0:02:24.4]} 18. g5
{[%clk 0:02:20.6]} 18... Be7 {[%clk 0:02:23.5]} 19. h4 {[%clk 0:02:20.6]} 19...
O-O-O {[%clk 0:02:21.5]} 20. d5 {[%clk 0:02:18.1]} 20... Nc5 {[%clk 0:02:16.1]}
21. dxe6 {[%clk 0:02:06.7]} 21... Nxe6 {[%clk 0:02:15.1]} 22. Bxg7 {[%clk
0:02:04.6]} 22... Bxg5+ {[%clk 0:01:52.3]} 23. hxg5 {[%clk 0:02:03.7]} 23...
Nxg7 {[%clk 0:01:52.4]} 24. Rxd8+ {[%clk 0:01:46.7]} 24... Rxd8 {[%clk
0:01:51.5]} 25. Rxh7 {[%clk 0:01:40.7]} 25... Ne6 {[%clk 0:01:42]} 26. Rxf7
{[%clk 0:01:36.6]} 26... Nd4 {[%clk 0:01:26.3]} 27. Nxd4 {[%clk 0:01:32.1]}
27... Qxd4 {[%clk 0:01:26.2]} 28. Kb1 {[%clk 0:01:23.8]} 28... b5 {[%clk
0:01:13.7]} 29. Qe6+ {[%clk 0:01:14.1]} 29... Kb8 {[%clk 0:01:10.2]} 30. Qxc6
{[%clk 0:01:13.2]} 30... Qd3+ {[%clk 0:00:57.5]} 31. Ka2 {[%clk 0:01:11.9]}
31... Qxc4+ {[%clk 0:00:56.3]} 32. Qxc4 {[%clk 0:01:11.3]} 32... bxc4 {[%clk
0:00:57.2]} 33. g6 {[%clk 0:01:09.4]} 1-0

[Event "*** SCC Grand Prix: Titled Tuesday Blitz"]
[Site "Chess.com"]
[Date "2020.08.25"]
[Round "9"]
[White "NoboaKevin1999"]
[Black "GMJustin"]
[Result "1-0"]
[WhiteElo "2410"]
[BlackElo "2240"]
[TimeControl "180+1"]
[EndTime "11:45:29 PDT"]
[Termination "NoboaKevin1999 won on time"]

1. d4 {[%clk 0:03:00.9]} 1... d5 {[%clk 0:02:59]} 2. c4 {[%clk 0:03:01]} 2...
dxc4 {[%clk 0:02:58.7]} 3. Nf3 {[%clk 0:02:59.6]} 3... a6 {[%clk 0:02:56.8]} 4.
e3 {[%clk 0:02:56]} 4... b5 {[%clk 0:02:49.7]} 5. a4 {[%clk 0:02:55.8]} 5... Bb7
{[%clk 0:02:47.1]} 6. b3 {[%clk 0:02:49.2]} 6... b4 {[%clk 0:02:19.4]} 7. Bxc4
{[%clk 0:02:47.1]} 7... e6 {[%clk 0:02:17.3]} 8. O-O {[%clk 0:02:46.8]} 8... Nf6
{[%clk 0:02:14.4]} 9. Nbd2 {[%clk 0:02:46.1]} 9... Be7 {[%clk 0:02:08.2]} 10.
Bb2 {[%clk 0:02:44.5]} 10... O-O {[%clk 0:02:04.2]} 11. Qe2 {[%clk 0:02:44.4]}
11... c5 {[%clk 0:01:20.3]} 12. dxc5 {[%clk 0:02:43.1]} 12... Bxc5 {[%clk
0:01:18]} 13. Rfd1 {[%clk 0:02:42.5]} 13... Qe7 {[%clk 0:01:11.5]} 14. Rac1
{[%clk 0:02:40.7]} 14... Nbd7 {[%clk 0:00:56.6]} 15. Bd3 {[%clk 0:02:37.5]}
15... Rfd8 {[%clk 0:00:29.7]} 16. Nc4 {[%clk 0:02:27.4]} 16... a5 {[%clk
0:00:21.8]} 17. Ncd2 {[%clk 0:02:23.6]} 17... Nd5 {[%clk 0:00:19.3]} 18. Bb5
{[%clk 0:02:00.9]} 18... Rac8 {[%clk 0:00:13.1]} 19. Nc4 {[%clk 0:01:58.5]}
19... Ra8 {[%clk 0:00:02.4]} 20. Nd4 {[%clk 0:01:39.9]} 20... N7b6 {[%clk
0:00:02]} 21. Ne5 {[%clk 0:01:31.4]} 1-0

[Event "*** SCC Grand Prix: Titled Tuesday Blitz"]
[Site "Chess.com"]
[Date "2020.08.25"]
[Round "9"]
[White "jefferyx"]
[Black "Hikaru"]
[Result "1/2-1/2"]
[WhiteElo "2925"]
[BlackElo "3209"]
[TimeControl "180+1"]
[EndTime "11:45:31 PDT"]
[Termination "Game drawn by agreement"]

1. d4 {[%clk 0:03:00.9]} 1... Nf6 {[%clk 0:02:59.6]} 2. c4 {[%clk 0:03:01.6]}
2... e6 {[%clk 0:02:59.4]} 3. Nc3 {[%clk 0:03:02.3]} 3... Bb4 {[%clk 0:02:59.3]}
4. Qc2 {[%clk 0:03:03]} 4... O-O {[%clk 0:02:59.3]} 5. e4 {[%clk 0:03:02.7]}
5... d5 {[%clk 0:02:58.8]} 6. e5 {[%clk 0:03:02.3]} 6... Ne4 {[%clk 0:02:59.5]}
7. Bd3 {[%clk 0:03:02.7]} 7... c5 {[%clk 0:02:59.5]} 8. Nf3 {[%clk 0:03:03.5]}
8... cxd4 {[%clk 0:02:59.6]} 9. Nxd4 {[%clk 0:03:04.4]} 9... Nd7 {[%clk
0:03:00.1]} 10. Bf4 {[%clk 0:03:05.1]} 10... Qh4 {[%clk 0:02:59.1]} 11. g3
{[%clk 0:03:05.2]} 11... Qh5 {[%clk 0:02:59.3]} 12. O-O {[%clk 0:03:01.5]} 12...
Bxc3 {[%clk 0:02:55.8]} 13. bxc3 {[%clk 0:03:02.4]} 13... g5 {[%clk 0:02:55.5]}
14. cxd5 {[%clk 0:03:01.3]} 14... exd5 {[%clk 0:02:54.8]} 15. Bxe4 {[%clk
0:02:32.4]} 15... dxe4 {[%clk 0:02:51.6]} 16. e6 {[%clk 0:02:32.8]} 16... gxf4
{[%clk 0:02:51.4]} 17. exd7 {[%clk 0:02:33.7]} 17... Bxd7 {[%clk 0:02:51.8]} 18.
Qxe4 {[%clk 0:02:34.3]} 18... fxg3 {[%clk 0:02:52.4]} 19. fxg3 {[%clk
0:02:35.1]} 19... Rae8 {[%clk 0:02:47.5]} 20. Qxb7 {[%clk 0:02:32.4]} 20... Bh3
{[%clk 0:02:46.5]} 21. Qf3 {[%clk 0:02:26.4]} 21... Qg5 {[%clk 0:02:33.7]} 22.
Qf4 {[%clk 0:02:11.5]} 22... Qd5 {[%clk 0:02:33.4]} 23. Rf2 {[%clk 0:02:05.8]}
23... Re4 {[%clk 0:02:27.4]} 24. Qh6 {[%clk 0:02:03.9]} 24... Bc8 {[%clk
0:02:19]} 25. Raf1 {[%clk 0:02:03]} 25... Rg4 {[%clk 0:02:08]} 26. Nf5 {[%clk
0:01:50]} 26... Bxf5 {[%clk 0:01:38.4]} 27. Rxf5 {[%clk 0:01:50.9]} 27... Qxa2
{[%clk 0:01:38]} 28. Rg5+ {[%clk 0:01:37]} 28... Rxg5 {[%clk 0:01:37.5]} 29.
Qxg5+ {[%clk 0:01:37.9]} 29... Kh8 {[%clk 0:01:38.2]} 30. Qf6+ {[%clk
0:01:38.7]} 30... Kg8 {[%clk 0:01:38.7]} 31. Rf5 {[%clk 0:01:25.6]} 31... Qb1+
{[%clk 0:01:38.3]} 32. Kg2 {[%clk 0:01:25.8]} 32... Qe4+ {[%clk 0:01:38.9]} 33.
Kh3 {[%clk 0:00:40.7]} 33... Qe6 {[%clk 0:01:37]} 34. Qxe6 {[%clk 0:00:29.2]}
34... fxe6 {[%clk 0:01:37.9]} 35. Ra5 {[%clk 0:00:29.7]} 35... Rc8 {[%clk
0:01:37.7]} 36. Rxa7 {[%clk 0:00:29]} 36... Rxc3 {[%clk 0:01:38.4]} 37. Re7
{[%clk 0:00:29.1]} 1/2-1/2

[Event "*** SCC Grand Prix: Titled Tuesday Blitz"]
[Site "Chess.com"]
[Date "2020.08.25"]
[Round "9"]
[White "Semen_Khanin"]
[Black "AlexTriapishko"]
[Result "0-1"]
[WhiteElo "2777"]
[BlackElo "2721"]
[TimeControl "180+1"]
[EndTime "11:45:34 PDT"]
[Termination "AlexTriapishko won by resignation"]

1. e4 {[%clk 0:03:00.9]} 1... c6 {[%clk 0:02:51.2]} 2. d4 {[%clk 0:03:00.7]}
2... d5 {[%clk 0:02:52.1]} 3. exd5 {[%clk 0:02:53.4]} 3... cxd5 {[%clk 0:02:53]}
4. Bd3 {[%clk 0:02:48.7]} 4... Nf6 {[%clk 0:02:53]} 5. h3 {[%clk 0:02:47.8]}
5... Nc6 {[%clk 0:02:52.3]} 6. c3 {[%clk 0:02:47.6]} 6... e5 {[%clk 0:02:52.2]}
7. dxe5 {[%clk 0:02:46.2]} 7... Nxe5 {[%clk 0:02:53.1]} 8. Qe2 {[%clk
0:02:40.2]} 8... Qe7 {[%clk 0:02:46.1]} 9. Bb5+ {[%clk 0:02:40.2]} 9... Bd7
{[%clk 0:02:45.1]} 10. Bxd7+ {[%clk 0:02:33.5]} 10... Nfxd7 {[%clk 0:02:38.8]}
11. Be3 {[%clk 0:02:30.7]} 11... Nc4 {[%clk 0:02:38.4]} 12. Bc1 {[%clk
0:02:24.8]} 12... Nc5 {[%clk 0:02:36]} 13. Qxe7+ {[%clk 0:02:05.3]} 13... Bxe7
{[%clk 0:02:36.9]} 14. Ke2 {[%clk 0:01:56.6]} 14... O-O-O {[%clk 0:02:33.7]} 15.
b3 {[%clk 0:01:53.4]} 15... Nd6 {[%clk 0:02:31.6]} 16. Nf3 {[%clk 0:01:52.5]}
16... Rhe8 {[%clk 0:02:30.7]} 17. Rd1 {[%clk 0:01:39.5]} 17... Bf6+ {[%clk
0:02:23.5]} 18. Kf1 {[%clk 0:01:37.4]} 18... Nde4 {[%clk 0:02:18]} 19. Nd4
{[%clk 0:01:36.7]} 19... Ne6 {[%clk 0:01:59]} 20. Be3 {[%clk 0:01:35.8]} 20...
a6 {[%clk 0:01:56.3]} 21. Na3 {[%clk 0:01:31.5]} 21... Kb8 {[%clk 0:01:40.6]}
22. Rac1 {[%clk 0:01:30.4]} 22... Rc8 {[%clk 0:01:33.3]} 23. Nxe6 {[%clk
0:01:26]} 23... fxe6 {[%clk 0:01:27.9]} 24. c4 {[%clk 0:01:25.9]} 24... Bb2
{[%clk 0:01:12.9]} 25. cxd5 {[%clk 0:01:17.9]} 25... Bxa3 {[%clk 0:01:05.2]} 26.
Bf4+ {[%clk 0:01:04.2]} 26... Bd6 {[%clk 0:01:04.8]} 27. Rxc8+ {[%clk 0:01:01]}
27... Kxc8 {[%clk 0:01:04.4]} 28. Be3 {[%clk 0:00:59.3]} 28... exd5 {[%clk
0:01:02.2]} 29. Rxd5 {[%clk 0:00:59.5]} 29... Kc7 {[%clk 0:01:01.7]} 30. Bd4
{[%clk 0:00:57.1]} 30... Nd2+ {[%clk 0:00:57.8]} 0-1

[Event "*** SCC Grand Prix: Titled Tuesday Blitz"]
[Site "Chess.com"]
[Date "2020.08.25"]
[Round "9"]
[White "fabianvivasz"]
[Black "GAusal"]
[Result "0-1"]
[WhiteElo "2281"]
[BlackElo "2168"]
[TimeControl "180+1"]
[EndTime "11:45:47 PDT"]
[Termination "GAusal won on time"]

1. e4 {[%clk 0:00:42.3]} 1... e5 {[%clk 0:02:56.3]} 2. Nf3 {[%clk 0:00:39.5]}
2... Nc6 {[%clk 0:02:55.6]} 3. d4 {[%clk 0:00:40.1]} 3... exd4 {[%clk
0:02:53.6]} 4. Bc4 {[%clk 0:00:40.6]} 4... Nf6 {[%clk 0:02:49.5]} 5. e5 {[%clk
0:00:39.9]} 5... d5 {[%clk 0:02:46.6]} 6. Bb5 {[%clk 0:00:40.4]} 6... Nd7 {[%clk
0:02:42.2]} 7. O-O {[%clk 0:00:38.9]} 7... Bc5 {[%clk 0:02:38.3]} 8. Bxc6 {[%clk
0:00:34.3]} 8... bxc6 {[%clk 0:02:36.4]} 9. Nxd4 {[%clk 0:00:35]} 9... Bxd4
{[%clk 0:02:30.6]} 10. Qxd4 {[%clk 0:00:35.9]} 10... O-O {[%clk 0:02:27.1]} 11.
f4 {[%clk 0:00:35]} 11... Ba6 {[%clk 0:02:22.8]} 12. Rf3 {[%clk 0:00:34.6]}
12... Qh4 {[%clk 0:02:18]} 13. Rg3 {[%clk 0:00:28.9]} 13... Qe7 {[%clk
0:02:13.5]} 14. Nc3 {[%clk 0:00:27.7]} 14... f6 {[%clk 0:02:09.5]} 15. Be3
{[%clk 0:00:15.8]} 15... fxe5 {[%clk 0:02:05.6]} 16. fxe5 {[%clk 0:00:15.1]}
16... Nxe5 {[%clk 0:02:02]} 17. Bf4 {[%clk 0:00:13]} 17... Rae8 {[%clk
0:01:49.5]} 18. h3 {[%clk 0:00:07.5]} 18... Nc4 {[%clk 0:01:45.6]} 19. Kh2
{[%clk 0:00:06.5]} 19... Qf6 {[%clk 0:01:38.9]} 20. Qxf6 {[%clk 0:00:04]} 20...
Rxf6 {[%clk 0:01:38.2]} 21. Bg5 {[%clk 0:00:04.2]} 21... Rf2 {[%clk 0:01:33.8]}
22. b3 {[%clk 0:00:04]} 22... Nd6 {[%clk 0:01:26]} 23. Bh6 {[%clk 0:00:03.2]}
23... Nf5 {[%clk 0:01:21.4]} 0-1

[Event "*** SCC Grand Prix: Titled Tuesday Blitz"]
[Site "Chess.com"]
[Date "2020.08.25"]
[Round "9"]
[White "Crazy_girl99"]
[Black "Gareth-Bale11"]
[Result "0-1"]
[WhiteElo "2514"]
[BlackElo "2740"]
[TimeControl "180+1"]
[EndTime "11:45:49 PDT"]
[Termination "Gareth-Bale11 won by resignation"]

1. e4 {[%clk 0:02:59.3]} 1... g6 {[%clk 0:03:00.9]} 2. d4 {[%clk 0:02:56.2]}
2... Bg7 {[%clk 0:03:01.2]} 3. Nc3 {[%clk 0:02:47.5]} 3... a6 {[%clk 0:03:01.3]}
4. Be3 {[%clk 0:02:47.6]} 4... b5 {[%clk 0:03:01]} 5. Bd3 {[%clk 0:02:47.3]}
5... Bb7 {[%clk 0:03:01]} 6. a3 {[%clk 0:02:47.6]} 6... d6 {[%clk 0:03:01.4]} 7.
Qd2 {[%clk 0:02:47.7]} 7... Nd7 {[%clk 0:03:01.4]} 8. Nge2 {[%clk 0:02:45.2]}
8... c5 {[%clk 0:03:01.3]} 9. b3 {[%clk 0:02:39.4]} 9... Rc8 {[%clk 0:02:58.1]}
10. dxc5 {[%clk 0:02:34.6]} 10... dxc5 {[%clk 0:02:57]} 11. Rb1 {[%clk 0:02:28]}
11... Ba8 {[%clk 0:02:54.2]} 12. Ng3 {[%clk 0:02:25.1]} 12... Qa5 {[%clk
0:02:46.1]} 13. Nce2 {[%clk 0:02:15.7]} 13... Qxd2+ {[%clk 0:02:44.4]} 14. Kxd2
{[%clk 0:02:03.7]} 14... c4 {[%clk 0:02:45.3]} 15. bxc4 {[%clk 0:01:51.5]} 15...
bxc4 {[%clk 0:02:46.2]} 16. f4 {[%clk 0:01:40.8]} 16... cxd3 {[%clk 0:02:42.7]}
17. cxd3 {[%clk 0:01:41.7]} 17... Ngf6 {[%clk 0:02:42.8]} 18. h3 {[%clk
0:01:31.9]} 18... O-O {[%clk 0:02:42.3]} 19. Nd4 {[%clk 0:01:24.2]} 19... h5
{[%clk 0:02:40.5]} 20. Nf3 {[%clk 0:01:22.1]} 20... Rfd8 {[%clk 0:02:37.2]} 21.
Rhd1 {[%clk 0:01:19.4]} 21... Nc5 {[%clk 0:02:30.8]} 22. Bxc5 {[%clk 0:01:07.8]}
22... Rxc5 {[%clk 0:02:29.8]} 23. e5 {[%clk 0:00:52.9]} 23... Nd5 {[%clk
0:02:21.9]} 24. Ne2 {[%clk 0:00:39.9]} 24... Nxf4 {[%clk 0:02:06.9]} 25. Nxf4
{[%clk 0:00:34.4]} 25... Bxf3 {[%clk 0:02:06.3]} 26. gxf3 {[%clk 0:00:32.2]}
26... Bh6 {[%clk 0:02:03.7]} 27. Rb4 {[%clk 0:00:30.3]} 27... Rxe5 {[%clk
0:02:03.3]} 28. Kc2 {[%clk 0:00:25.1]} 28... Rc8+ {[%clk 0:01:57.9]} 29. Kb3
{[%clk 0:00:23.4]} 29... a5 {[%clk 0:01:58.1]} 30. Rd4 {[%clk 0:00:20.2]} 30...
Rec5 {[%clk 0:01:45.9]} 31. Nd5 {[%clk 0:00:18.3]} 31... Kf8 {[%clk 0:01:44.2]}
32. Rc4 {[%clk 0:00:14.8]} 32... Rb8+ {[%clk 0:01:43.6]} 33. Nb4 {[%clk
0:00:11.1]} 33... Rcb5 {[%clk 0:01:42.1]} 34. Re1 {[%clk 0:00:06.7]} 34... axb4
{[%clk 0:01:41]} 35. axb4 {[%clk 0:00:07.6]} 35... Rxb4+ {[%clk 0:01:40.8]} 36.
Rxb4 {[%clk 0:00:07.5]} 36... Rxb4+ {[%clk 0:01:41.7]} 37. Kxb4 {[%clk
0:00:08.4]} 37... Bd2+ {[%clk 0:01:41.5]} 0-1

[Event "*** SCC Grand Prix: Titled Tuesday Blitz"]
[Site "Chess.com"]
[Date "2020.08.25"]
[Round "9"]
[White "Shubinkirill2003"]
[Black "BigAl"]
[Result "1-0"]
[WhiteElo "2646"]
[BlackElo "2483"]
[TimeControl "180+1"]
[EndTime "11:45:50 PDT"]
[Termination "Shubinkirill2003 won by resignation"]

1. e4 {[%clk 0:03:00.9]} 1... c6 {[%clk 0:02:59.8]} 2. d4 {[%clk 0:03:00.7]}
2... d5 {[%clk 0:03:00.2]} 3. exd5 {[%clk 0:03:01.6]} 3... cxd5 {[%clk 0:03:00]}
4. Bd3 {[%clk 0:03:02.1]} 4... Nc6 {[%clk 0:02:59.7]} 5. c3 {[%clk 0:02:56.6]}
5... Qc7 {[%clk 0:02:59.6]} 6. Ne2 {[%clk 0:02:56.2]} 6... g6 {[%clk 0:02:57.4]}
7. Bf4 {[%clk 0:02:54.7]} 7... e5 {[%clk 0:02:55.6]} 8. dxe5 {[%clk 0:02:53.5]}
8... Nxe5 {[%clk 0:02:55.8]} 9. Bb5+ {[%clk 0:02:52.1]} 9... Ke7 {[%clk
0:02:29]} 10. Qxd5 {[%clk 0:02:45.5]} 10... Bg7 {[%clk 0:02:27.9]} 11. O-O
{[%clk 0:02:10.7]} 11... Be6 {[%clk 0:02:27.7]} 12. Qe4 {[%clk 0:02:05.1]} 12...
f5 {[%clk 0:02:15.4]} 13. Qe3 {[%clk 0:02:00.4]} 13... g5 {[%clk 0:01:49.8]} 14.
Bxg5+ {[%clk 0:01:57.4]} 14... Nf6 {[%clk 0:01:50.5]} 15. Nd4 {[%clk 0:01:52.7]}
15... h6 {[%clk 0:01:35.8]} 16. Bh4 {[%clk 0:01:45.4]} 16... Qd6 {[%clk
0:01:12.4]} 17. f4 {[%clk 0:01:37.9]} 17... Ng4 {[%clk 0:01:01]} 18. Nxf5+
{[%clk 0:01:31.9]} 18... Kf8 {[%clk 0:00:57.3]} 19. Nxd6 {[%clk 0:01:31.7]}
19... Nxe3 {[%clk 0:00:56.9]} 20. Re1 {[%clk 0:01:31.5]} 20... Nfd5 {[%clk
0:00:36.7]} 21. Na3 {[%clk 0:01:16.6]} 21... Bg8 {[%clk 0:00:27.1]} 22. Nxb7
{[%clk 0:01:05.2]} 22... Rb8 {[%clk 0:00:19.2]} 23. Nc5 {[%clk 0:01:04.4]} 23...
Rb6 {[%clk 0:00:17.6]} 24. Nd7+ {[%clk 0:01:03.7]} 1-0

[Event "*** SCC Grand Prix: Titled Tuesday Blitz"]
[Site "Chess.com"]
[Date "2020.08.25"]
[Round "9"]
[White "reutik"]
[Black "Oglob71"]
[Result "1-0"]
[WhiteElo "2328"]
[BlackElo "2551"]
[TimeControl "180+1"]
[EndTime "11:45:56 PDT"]
[Termination "reutik won on time"]

1. d4 {[%clk 0:03:00.9]} 1... Nf6 {[%clk 0:02:56.7]} 2. c4 {[%clk 0:03:01]} 2...
e6 {[%clk 0:02:55.7]} 3. Nf3 {[%clk 0:03:01.2]} 3... b6 {[%clk 0:02:55.3]} 4.
Nc3 {[%clk 0:03:01.4]} 4... Bb4 {[%clk 0:02:54.7]} 5. Bg5 {[%clk 0:03:01.5]}
5... h6 {[%clk 0:02:54.2]} 6. Bh4 {[%clk 0:03:01]} 6... Bb7 {[%clk 0:02:52.6]}
7. Nd2 {[%clk 0:03:00]} 7... Bxc3 {[%clk 0:02:50.6]} 8. bxc3 {[%clk 0:02:59.8]}
8... d6 {[%clk 0:02:51]} 9. f3 {[%clk 0:02:59.8]} 9... Nbd7 {[%clk 0:02:48.1]}
10. e4 {[%clk 0:02:59.5]} 10... e5 {[%clk 0:02:48.4]} 11. Bd3 {[%clk 0:02:55.7]}
11... Qe7 {[%clk 0:02:48.3]} 12. O-O {[%clk 0:02:52.7]} 12... Nf8 {[%clk
0:02:47.8]} 13. Bf2 {[%clk 0:02:49.3]} 13... Ng6 {[%clk 0:02:09.5]} 14. g3
{[%clk 0:02:48.1]} 14... O-O {[%clk 0:02:09]} 15. a4 {[%clk 0:02:42.1]} 15...
Nh7 {[%clk 0:01:57]} 16. Qb3 {[%clk 0:02:38.7]} 16... Bc8 {[%clk 0:01:54.8]} 17.
Be3 {[%clk 0:02:33.9]} 17... Kh8 {[%clk 0:01:47.9]} 18. a5 {[%clk 0:02:32.5]}
18... Bh3 {[%clk 0:01:47]} 19. Rf2 {[%clk 0:02:32.3]} 19... f5 {[%clk 0:01:45]}
20. exf5 {[%clk 0:02:27.2]} 20... Bxf5 {[%clk 0:01:45]} 21. Bxf5 {[%clk
0:02:27.2]} 21... Rxf5 {[%clk 0:01:45.2]} 22. axb6 {[%clk 0:02:26.5]} 22... cxb6
{[%clk 0:01:45.5]} 23. d5 {[%clk 0:02:12.1]} 23... Raf8 {[%clk 0:01:44.4]} 24.
Qa4 {[%clk 0:02:08.4]} 24... R5f7 {[%clk 0:01:40.2]} 25. Qc6 {[%clk 0:02:02.7]}
25... Qc7 {[%clk 0:01:24.3]} 26. Qb5 {[%clk 0:01:45.2]} 26... Nf6 {[%clk
0:01:18]} 27. Kg2 {[%clk 0:01:42.1]} 27... Kh7 {[%clk 0:01:08.5]} 28. Qb1 {[%clk
0:01:41.1]} 28... Ne8 {[%clk 0:00:58.8]} 29. h4 {[%clk 0:01:37.3]} 29... h5
{[%clk 0:00:59.1]} 30. g4 {[%clk 0:01:35.7]} 30... hxg4 {[%clk 0:00:58.5]} 31.
h5 {[%clk 0:01:36]} 31... gxf3+ {[%clk 0:00:55.5]} 32. Rxf3 {[%clk 0:01:35.9]}
1-0